[Event "Live Chess"]
[Site "Chess.com"]
[Date "2024.06.01"]
[Round "-"]
[White "DJ_Lambton"]
[Black "Tushinskiy"]
[Result "1-0"]
[WhiteElo "1754"]
[BlackElo "2221"]
[TimeControl "300"]
[EndTime "15:20:25 PDT"]
[Termination "DJ_Lambton won by resignation"]

1. c4 {[%clk 0:04:58]} 1... c5 {[%clk 0:04:54.5]} 2. g3 {[%clk 0:04:57.2]} 2...
d6 {[%clk 0:04:54.4]} 3. Bg2 {[%clk 0:04:56.6]} 3... Nc6 {[%clk 0:04:54.3]} 4.
Nc3 {[%clk 0:04:56.1]} 4... Nf6 {[%clk 0:04:54.2]} 5. e3 {[%clk 0:04:55.7]} 5...
g6 {[%clk 0:04:44]} 6. Nge2 {[%clk 0:04:54]} 6... Bg7 {[%clk 0:04:43.1]} 7. O-O
{[%clk 0:04:52.5]} 7... O-O {[%clk 0:04:40.4]} 8. b3 {[%clk 0:04:51.1]} 8... Bg4
{[%clk 0:04:32.9]} 9. Bb2 {[%clk 0:04:49.2]} 9... Qc8 {[%clk 0:04:18.1]} 10. d3
{[%clk 0:04:47.3]} 10... Bh3 {[%clk 0:04:16.5]} 11. d4 {[%clk 0:04:46.7]} 11...
Bxg2 {[%clk 0:04:15.3]} 12. Kxg2 {[%clk 0:04:46.6]} 12... cxd4 {[%clk
0:04:14.3]} 13. Nxd4 {[%clk 0:04:46.5]} 13... Re8 {[%clk 0:04:12]} 14. Qd2
{[%clk 0:04:45]} 14... a6 {[%clk 0:04:09.7]} 15. Rfe1 {[%clk 0:04:44.2]} 15...
h5 {[%clk 0:04:08.4]} 16. e4 {[%clk 0:04:33.1]} 16... Nxd4 {[%clk 0:04:01.2]}
17. Qxd4 {[%clk 0:04:32.1]} 17... Ng4 {[%clk 0:03:55.8]} 18. Qd2 {[%clk
0:04:29]} 18... Ne5 {[%clk 0:03:53.9]} 19. h4 {[%clk 0:04:25.9]} 19... Qg4
{[%clk 0:03:51.8]} 20. Nd5 {[%clk 0:04:23.4]} 20... Qf3+ {[%clk 0:03:43.8]} 21.
Kg1 {[%clk 0:04:20.6]} 21... Rac8 {[%clk 0:03:30.4]} 22. Re3 {[%clk 0:04:19.2]}
22... Qg4 {[%clk 0:03:28.1]} 23. Bxe5 {[%clk 0:04:09.9]} 23... Bxe5 {[%clk
0:03:23.4]} 24. Rd1 {[%clk 0:04:08.5]} 24... b5 {[%clk 0:03:21.8]} 25. Qd3
{[%clk 0:04:01.8]} 25... bxc4 {[%clk 0:03:19.2]} 26. bxc4 {[%clk 0:04:01.4]}
26... Rxc4 {[%clk 0:03:16.6]} 27. Re2 {[%clk 0:03:43.8]} 27... Rd4 {[%clk
0:03:10.9]} 28. Qc2 {[%clk 0:03:41.1]} 28... Rxd1+ {[%clk 0:03:08.8]} 29. Qxd1
{[%clk 0:03:40.3]} 29... e6 {[%clk 0:03:08.2]} 30. Ne3 {[%clk 0:03:38.9]} 30...
Qf3 {[%clk 0:03:05.2]} 31. Rd2 {[%clk 0:03:36.3]} 31... Qxe4 {[%clk 0:03:03.5]}
32. Ng2 {[%clk 0:03:30.6]} 32... Rb8 {[%clk 0:02:55.6]} 33. Qe2 {[%clk
0:03:23.8]} 33... Rb1+ {[%clk 0:02:53.6]} 34. Kh2 {[%clk 0:03:23]} 34... Qxe2
{[%clk 0:02:51.3]} 35. Rxe2 {[%clk 0:03:22.2]} 35... Bd4 {[%clk 0:02:45.7]} 36.
Ne3 {[%clk 0:03:19.8]} 36... Bxe3 {[%clk 0:02:43]} 37. fxe3 {[%clk 0:03:17.8]}
37... d5 {[%clk 0:02:42.2]} 38. Kg2 {[%clk 0:03:17.2]} 38... Kg7 {[%clk
0:02:41.2]} 39. Kf2 {[%clk 0:03:16.6]} 39... Kf6 {[%clk 0:02:40.5]} 40. Kg2
{[%clk 0:03:15]} 40... Ke5 {[%clk 0:02:39.5]} 41. Kf2 {[%clk 0:03:14.3]} 41...
f5 {[%clk 0:02:38.8]} 42. Rc2 {[%clk 0:03:13.4]} 42... a5 {[%clk 0:02:36.8]} 43.
Kf3 {[%clk 0:03:10.7]} 43... a4 {[%clk 0:02:35.5]} 44. Rd2 {[%clk 0:03:09.3]}
44... Kd6 {[%clk 0:02:32.6]} 45. Rd4 {[%clk 0:03:06.4]} 45... e5 {[%clk
0:02:21.9]} 46. Rxa4 {[%clk 0:03:05.1]} 46... Rf1+ {[%clk 0:02:18.2]} 47. Ke2
{[%clk 0:03:03.7]} 47... Rg1 {[%clk 0:02:17]} 48. Kf2 {[%clk 0:03:03]} 48... Ra1
{[%clk 0:02:14.3]} 49. Ra6+ {[%clk 0:03:01.9]} 49... Kc5 {[%clk 0:02:13.3]} 50.
a4 {[%clk 0:03:00.1]} 50... d4 {[%clk 0:02:11.3]} 51. exd4+ {[%clk 0:02:59]}
51... exd4 {[%clk 0:02:11.2]} 52. Rxg6 {[%clk 0:02:56.9]} 52... Rxa4 {[%clk
0:02:06.9]} 53. Rf6 {[%clk 0:02:55.7]} 53... Ra2+ {[%clk 0:02:05.7]} 54. Ke1
{[%clk 0:02:53.3]} 54... Rg2 {[%clk 0:02:00.4]} 55. Rxf5+ {[%clk 0:02:52.2]}
55... Kc4 {[%clk 0:01:59.5]} 56. Rg5 {[%clk 0:02:52.1]} 56... Rxg3 {[%clk
0:01:58.4]} 57. Rxg3 {[%clk 0:02:51.1]} 1-0

[Event "Live Chess"]
[Site "Chess.com"]
[Date "2024.06.01"]
[Round "-"]
[White "MagnersCarlsberg2870"]
[Black "GrahamCuthbert"]
[Result "1-0"]
[WhiteElo "1766"]
[BlackElo "1031"]
[TimeControl "300"]
[EndTime "15:20:36 PDT"]
[Termination "MagnersCarlsberg2870 won by checkmate"]

1. d4 {[%clk 0:04:57.1]} 1... d5 {[%clk 0:04:57.8]} 2. e3 {[%clk 0:04:55.5]}
2... Nf6 {[%clk 0:04:54.9]} 3. Bd3 {[%clk 0:04:54.4]} 3... Nc6 {[%clk
0:04:51.7]} 4. f4 {[%clk 0:04:52.6]} 4... g6 {[%clk 0:04:50.1]} 5. Nd2 {[%clk
0:04:50.9]} 5... Bg7 {[%clk 0:04:49.1]} 6. Ngf3 {[%clk 0:04:49.9]} 6... Bg4
{[%clk 0:04:45.5]} 7. h3 {[%clk 0:04:48.1]} 7... Bxf3 {[%clk 0:04:44.2]} 8. Qxf3
{[%clk 0:04:45.4]} 8... Nb4 {[%clk 0:04:31.2]} 9. Bb5+ {[%clk 0:04:39.5]} 9...
c6 {[%clk 0:04:27.1]} 10. Ba4 {[%clk 0:04:38.5]} 10... b5 {[%clk 0:04:23.7]} 11.
Bb3 {[%clk 0:04:37.4]} 11... a5 {[%clk 0:04:14.6]} 12. a3 {[%clk 0:04:35.9]}
12... a4 {[%clk 0:04:09.2]} 13. axb4 {[%clk 0:04:34.8]} 13... axb3 {[%clk
0:04:08.1]} 14. Nxb3 {[%clk 0:04:33.8]} 14... Rxa1 {[%clk 0:04:00.4]} 15. Nxa1
{[%clk 0:04:32.4]} 15... Ne4 {[%clk 0:03:46.6]} 16. Nb3 {[%clk 0:04:26.8]} 16...
Qa8 {[%clk 0:03:43.7]} 17. Nc5 {[%clk 0:04:19.8]} 17... O-O {[%clk 0:02:59.4]}
18. Nxe4 {[%clk 0:04:17.9]} 18... dxe4 {[%clk 0:02:55]} 19. Qxe4 {[%clk
0:04:17.1]} 19... e6 {[%clk 0:02:49]} 20. O-O {[%clk 0:04:11.2]} 20... Rd8
{[%clk 0:02:42.5]} 21. c3 {[%clk 0:04:09.1]} 21... Kf8 {[%clk 0:02:32.4]} 22.
Qf3 {[%clk 0:04:07.3]} 22... Qa6 {[%clk 0:02:21.9]} 23. e4 {[%clk 0:04:05]}
23... Qb6 {[%clk 0:02:12.6]} 24. f5 {[%clk 0:04:03.1]} 24... exf5 {[%clk
0:02:10.3]} 25. exf5 {[%clk 0:04:01.9]} 25... Bxd4+ {[%clk 0:02:01.9]} 26. Kh1
{[%clk 0:03:58.4]} 26... Bg7 {[%clk 0:01:50.3]} 27. fxg6 {[%clk 0:03:56.9]}
27... hxg6 {[%clk 0:01:48.1]} 28. Qxf7# {[%clk 0:03:55.1]} 1-0

[Event "Live Chess"]
[Site "Chess.com"]
[Date "2024.06.01"]
[Round "-"]
[White "Queensandpawns"]
[Black "hapehansen"]
[Result "0-1"]
[WhiteElo "2347"]
[BlackElo "2270"]
[TimeControl "300"]
[EndTime "15:21:28 PDT"]
[Termination "hapehansen won by resignation"]

1. e4 {[%clk 0:04:58.7]} 1... d5 {[%clk 0:04:57.7]} 2. Nc3 {[%clk 0:04:57.4]}
2... dxe4 {[%clk 0:04:55.8]} 3. Nxe4 {[%clk 0:04:57.3]} 3... Qd5 {[%clk
0:04:54.5]} 4. d3 {[%clk 0:04:50.6]} 4... Nc6 {[%clk 0:04:50.9]} 5. Nf3 {[%clk
0:04:48.5]} 5... Bg4 {[%clk 0:04:45.4]} 6. h3 {[%clk 0:04:45.4]} 6... Bh5 {[%clk
0:04:43.6]} 7. Ng3 {[%clk 0:04:43.3]} 7... Bxf3 {[%clk 0:04:40.3]} 8. Qxf3
{[%clk 0:04:43.2]} 8... Qxf3 {[%clk 0:04:38.3]} 9. gxf3 {[%clk 0:04:43.1]} 9...
Nd4 {[%clk 0:04:35]} 10. Kd1 {[%clk 0:04:42.7]} 10... O-O-O {[%clk 0:04:31.3]}
11. f4 {[%clk 0:04:40.2]} 11... e6 {[%clk 0:04:23.4]} 12. c3 {[%clk 0:04:38.8]}
12... Nf3 {[%clk 0:04:07.2]} 13. Bg2 {[%clk 0:04:37.5]} 13... Nh4 {[%clk
0:04:04.8]} 14. Be4 {[%clk 0:04:37]} 14... f5 {[%clk 0:04:01.6]} 0-1

[Event "Live Chess"]
[Site "Chess.com"]
[Date "2024.06.01"]
[Round "-"]
[White "Plato_77"]
[Black "Duke_of_Bebington"]
[Result "0-1"]
[WhiteElo "1321"]
[BlackElo "1638"]
[TimeControl "300"]
[EndTime "15:21:43 PDT"]
[Termination "Duke_of_Bebington won by resignation"]

1. d4 {[%clk 0:04:55.1]} 1... Nf6 {[%clk 0:04:57.6]} 2. Bf4 {[%clk 0:04:52]}
2... d5 {[%clk 0:04:48.6]} 3. e3 {[%clk 0:04:44.7]} 3... Bf5 {[%clk 0:04:43.9]}
4. c3 {[%clk 0:04:40.8]} 4... e6 {[%clk 0:04:40.4]} 5. Nf3 {[%clk 0:04:37.2]}
5... c5 {[%clk 0:04:38.7]} 6. Nbd2 {[%clk 0:04:34.7]} 6... Nc6 {[%clk
0:04:35.7]} 7. Ne5 {[%clk 0:04:29.6]} 7... cxd4 {[%clk 0:04:22.6]} 8. exd4
{[%clk 0:04:27.4]} 8... Nxe5 {[%clk 0:04:21.3]} 9. Bxe5 {[%clk 0:04:25.5]} 9...
Bd6 {[%clk 0:04:18.9]} 10. Bxd6 {[%clk 0:04:22.9]} 10... Qxd6 {[%clk 0:04:16.8]}
11. Nf3 {[%clk 0:04:22.2]} 11... O-O {[%clk 0:04:15.2]} 12. Bd3 {[%clk 0:04:16]}
12... Bxd3 {[%clk 0:04:12.9]} 13. Qxd3 {[%clk 0:04:15.9]} 13... Ne4 {[%clk
0:04:04.9]} 14. O-O {[%clk 0:04:11.7]} 14... f6 {[%clk 0:03:56.2]} 15. Nd2
{[%clk 0:04:07.6]} 15... Nxd2 {[%clk 0:03:49.8]} 16. Qxd2 {[%clk 0:04:07.5]}
16... Rac8 {[%clk 0:03:47.5]} 17. Rfe1 {[%clk 0:04:03.5]} 17... e5 {[%clk
0:03:45.4]} 18. dxe5 {[%clk 0:04:01.4]} 18... fxe5 {[%clk 0:03:41.9]} 19. Rad1
{[%clk 0:04:00.5]} 19... Rcd8 {[%clk 0:03:35.7]} 20. c4 {[%clk 0:03:56.2]} 20...
d4 {[%clk 0:03:34.2]} 21. b3 {[%clk 0:03:47.7]} 21... Rfe8 {[%clk 0:03:17]} 22.
Re4 {[%clk 0:03:42.1]} 22... Qf6 {[%clk 0:03:13.3]} 23. Qb4 {[%clk 0:03:28.1]}
23... Qf5 {[%clk 0:03:01.1]} 24. f3 {[%clk 0:03:22.8]} 24... Rd7 {[%clk
0:02:59.5]} 25. c5 {[%clk 0:03:17]} 25... Rde7 {[%clk 0:02:53]} 26. Qc4+ {[%clk
0:03:15.2]} 26... Kh8 {[%clk 0:02:50.4]} 27. b4 {[%clk 0:03:03.8]} 27... Qc8
{[%clk 0:02:49]} 28. a4 {[%clk 0:03:00.5]} 28... a6 {[%clk 0:02:47.3]} 29. Rde1
{[%clk 0:02:51.3]} 29... Qc6 {[%clk 0:02:45.5]} 30. b5 {[%clk 0:02:42.8]} 30...
axb5 {[%clk 0:02:43.4]} 31. axb5 {[%clk 0:02:42.7]} 31... Qc7 {[%clk 0:02:41.4]}
32. f4 {[%clk 0:02:03.3]} 32... exf4 {[%clk 0:02:30.7]} 33. Rxe7 {[%clk
0:02:01.6]} 33... Rxe7 {[%clk 0:02:27.3]} 34. Rxe7 {[%clk 0:02:01.5]} 34... Qxe7
{[%clk 0:02:26]} 35. Kf1 {[%clk 0:01:51]} 35... Qe4 {[%clk 0:02:01.9]} 36. Qa4
{[%clk 0:01:36.6]} 36... Qb1+ {[%clk 0:01:47.9]} 37. Ke2 {[%clk 0:01:28.1]}
37... Qb2+ {[%clk 0:01:45.9]} 38. Kf3 {[%clk 0:01:23.5]} 38... Qc3+ {[%clk
0:01:43.9]} 39. Kg4 {[%clk 0:01:15.2]} 39... h5+ {[%clk 0:01:38.1]} 40. Kxh5
{[%clk 0:01:09]} 40... Qxc5+ {[%clk 0:01:36.6]} 41. Kg4 {[%clk 0:01:05.2]} 41...
d3 {[%clk 0:01:26.4]} 42. Qa8+ {[%clk 0:00:54.1]} 42... Kh7 {[%clk 0:01:24.8]}
43. Qd8 {[%clk 0:00:47.3]} 43... Qxb5 {[%clk 0:01:16.7]} 44. Qh4+ {[%clk
0:00:39.9]} 44... Kg8 {[%clk 0:01:13.8]} 45. Qd8+ {[%clk 0:00:35.1]} 45... Kf7
{[%clk 0:01:12.4]} 46. Qc7+ {[%clk 0:00:27.7]} 46... Ke6 {[%clk 0:01:09.4]} 47.
Qc8+ {[%clk 0:00:18.4]} 47... Qd7 {[%clk 0:01:07.2]} 48. Qc4+ {[%clk 0:00:15.3]}
48... Ke7+ {[%clk 0:01:01.4]} 49. Kxf4 {[%clk 0:00:11.8]} 49... Qd6+ {[%clk
0:01:00.1]} 50. Ke3 {[%clk 0:00:09.1]} 50... Qe6+ {[%clk 0:00:58]} 51. Kd2
{[%clk 0:00:07]} 51... Qxc4 {[%clk 0:00:56.4]} 0-1

[Event "Live Chess"]
[Site "Chess.com"]
[Date "2024.06.01"]
[Round "-"]
[White "ACM42"]
[Black "Dhaydon19"]
[Result "0-1"]
[WhiteElo "2154"]
[BlackElo "2679"]
[TimeControl "300"]
[EndTime "15:22:04 PDT"]
[Termination "Dhaydon19 won by checkmate"]

1. e4 {[%clk 0:04:58.7]} 1... e6 {[%clk 0:04:59.1]} 2. d4 {[%clk 0:04:57.4]}
2... d5 {[%clk 0:04:58.8]} 3. Nc3 {[%clk 0:04:55.1]} 3... dxe4 {[%clk
0:04:57.9]} 4. Nxe4 {[%clk 0:04:54]} 4... Be7 {[%clk 0:04:57]} 5. Ne2 {[%clk
0:04:52.5]} 5... Nd7 {[%clk 0:04:56.6]} 6. N2g3 {[%clk 0:04:51.8]} 6... Ngf6
{[%clk 0:04:56.3]} 7. Bd3 {[%clk 0:04:51.1]} 7... b6 {[%clk 0:04:55.2]} 8. O-O
{[%clk 0:04:50.3]} 8... Bb7 {[%clk 0:04:54.1]} 9. c3 {[%clk 0:04:49.7]} 9... O-O
{[%clk 0:04:53.1]} 10. f4 {[%clk 0:04:47.7]} 10... c5 {[%clk 0:04:52.4]} 11. Be3
{[%clk 0:04:42.3]} 11... Nd5 {[%clk 0:04:47.6]} 12. Bd2 {[%clk 0:04:32.2]} 12...
cxd4 {[%clk 0:04:43.3]} 13. cxd4 {[%clk 0:04:31.1]} 13... N5f6 {[%clk
0:04:36.4]} 14. Rc1 {[%clk 0:04:26.9]} 14... Nxe4 {[%clk 0:04:18.7]} 15. Bxe4
{[%clk 0:04:25.5]} 15... Bxe4 {[%clk 0:04:16.6]} 16. Nxe4 {[%clk 0:04:24.8]}
16... Nf6 {[%clk 0:04:16.3]} 17. Nxf6+ {[%clk 0:04:16.9]} 17... Bxf6 {[%clk
0:04:12]} 18. Bc3 {[%clk 0:04:10.5]} 18... Qd5 {[%clk 0:04:10.6]} 19. Qd2 {[%clk
0:03:58.1]} 19... Qxa2 {[%clk 0:04:07.5]} 20. f5 {[%clk 0:03:55.6]} 20... Rfd8
{[%clk 0:03:53.7]} 21. fxe6 {[%clk 0:03:53.6]} 21... Qxe6 {[%clk 0:03:42.4]} 22.
Rce1 {[%clk 0:03:50.3]} 22... Qc4 {[%clk 0:03:40.2]} 23. Re4 {[%clk 0:03:34.3]}
23... Re8 {[%clk 0:03:35.8]} 24. Rg4 {[%clk 0:03:30.5]} 24... Re6 {[%clk
0:03:11]} 25. Qd1 {[%clk 0:02:37]} 25... Qd5 {[%clk 0:03:04.5]} 26. Rgf4 {[%clk
0:02:27.2]} 26... Rd8 {[%clk 0:02:57.4]} 27. Rf5 {[%clk 0:02:26.1]} 27... Qd7
{[%clk 0:02:44.8]} 28. Kh1 {[%clk 0:02:18.5]} 28... Rd6 {[%clk 0:02:38.4]} 29.
Qh5 {[%clk 0:02:02.1]} 29... g6 {[%clk 0:02:34.4]} 30. Qg4 {[%clk 0:01:54.6]}
30... Bg7 {[%clk 0:02:32.3]} 31. R5f4 {[%clk 0:01:48.2]} 31... Qxg4 {[%clk
0:02:29.6]} 32. Rxg4 {[%clk 0:01:47.6]} 32... Bxd4 {[%clk 0:02:29.3]} 33. Rgf4
{[%clk 0:01:42.4]} 33... Bxc3 {[%clk 0:02:27.7]} 34. bxc3 {[%clk 0:01:41.6]}
34... R8d7 {[%clk 0:02:26.5]} 35. Ra4 {[%clk 0:01:38.8]} 35... Rc6 {[%clk
0:02:24.8]} 36. c4 {[%clk 0:01:36.7]} 36... a5 {[%clk 0:02:22.3]} 37. h3 {[%clk
0:01:34.9]} 37... Rd4 {[%clk 0:02:21.4]} 38. Rc1 {[%clk 0:01:30.8]} 38... Rf6
{[%clk 0:02:16.3]} 39. Ra2 {[%clk 0:01:27]} 39... Rc6 {[%clk 0:02:14.4]} 40. Rb2
{[%clk 0:01:25.6]} 40... h5 {[%clk 0:02:10.8]} 41. Kg1 {[%clk 0:01:19.1]} 41...
Kg7 {[%clk 0:02:08.2]} 42. Kf2 {[%clk 0:01:18.1]} 42... Rdxc4 {[%clk 0:02:07.3]}
43. Rxc4 {[%clk 0:01:16.9]} 43... Rxc4 {[%clk 0:02:07]} 44. Rxb6 {[%clk
0:01:16.4]} 44... a4 {[%clk 0:02:04.6]} 45. Ra6 {[%clk 0:01:15.6]} 45... h4
{[%clk 0:02:02.8]} 46. Kf3 {[%clk 0:01:14]} 46... f5 {[%clk 0:02:00.3]} 47. Kf2
{[%clk 0:01:09.4]} 47... Kh6 {[%clk 0:01:58.6]} 48. Kf3 {[%clk 0:01:06.4]} 48...
Kg5 {[%clk 0:01:57.6]} 49. Ra5 {[%clk 0:01:04.6]} 49... Rc3+ {[%clk 0:01:56.4]}
50. Kf2 {[%clk 0:01:03.5]} 50... a3 {[%clk 0:01:56.1]} 51. Ra4 {[%clk
0:01:01.7]} 51... Rc2+ {[%clk 0:01:51.3]} 52. Kf3 {[%clk 0:01:00.5]} 52... a2
{[%clk 0:01:51]} 53. Ra5 {[%clk 0:00:55.5]} 53... Kf6 {[%clk 0:01:49.7]} 54. g4
{[%clk 0:00:46.5]} 54... Rc3+ {[%clk 0:01:45.4]} 55. Kf4 {[%clk 0:00:42]} 55...
g5# {[%clk 0:01:43.6]} 0-1

[Event "Live Chess"]
[Site "Chess.com"]
[Date "2024.06.01"]
[Round "-"]
[White "Delacorta"]
[Black "IgorSchukin"]
[Result "0-1"]
[WhiteElo "1543"]
[BlackElo "1709"]
[TimeControl "300"]
[EndTime "15:22:06 PDT"]
[Termination "IgorSchukin won by resignation"]

1. d4 {[%clk 0:04:57.7]} 1... d5 {[%clk 0:04:58.5]} 2. Nf3 {[%clk 0:04:56.8]}
2... Nf6 {[%clk 0:04:57.6]} 3. e3 {[%clk 0:04:56.1]} 3... g6 {[%clk 0:04:57.2]}
4. Be2 {[%clk 0:04:53.2]} 4... Bg7 {[%clk 0:04:56.7]} 5. Nbd2 {[%clk 0:04:49.6]}
5... O-O {[%clk 0:04:56.1]} 6. Nf1 {[%clk 0:04:48.1]} 6... Bg4 {[%clk
0:04:53.5]} 7. Ng3 {[%clk 0:04:46.6]} 7... Nbd7 {[%clk 0:04:51]} 8. h3 {[%clk
0:04:41.4]} 8... Bxf3 {[%clk 0:04:49.3]} 9. gxf3 {[%clk 0:04:39.4]} 9... c5
{[%clk 0:04:47.4]} 10. c3 {[%clk 0:04:34.6]} 10... Rc8 {[%clk 0:04:45.5]} 11. e4
{[%clk 0:04:27]} 11... dxe4 {[%clk 0:04:40.4]} 12. fxe4 {[%clk 0:04:25.7]} 12...
cxd4 {[%clk 0:04:33.9]} 13. cxd4 {[%clk 0:04:18]} 13... e5 {[%clk 0:04:27.4]}
14. d5 {[%clk 0:04:14.7]} 14... Nc5 {[%clk 0:04:15.9]} 15. h4 {[%clk 0:03:53.6]}
15... Nfxe4 {[%clk 0:04:09.5]} 16. h5 {[%clk 0:03:37.9]} 16... Nxg3 {[%clk
0:03:54.1]} 17. fxg3 {[%clk 0:03:31]} 17... Ne4 {[%clk 0:03:52.2]} 18. hxg6
{[%clk 0:03:19.6]} 18... fxg6 {[%clk 0:03:27.8]} 19. Qb3 {[%clk 0:02:52.6]}
19... Qd6 {[%clk 0:02:31.5]} 20. Bd2 {[%clk 0:02:16.3]} 20... Nxd2 {[%clk
0:02:01.6]} 21. Kxd2 {[%clk 0:02:15]} 21... e4 {[%clk 0:01:57.2]} 22. Rh4 {[%clk
0:01:34.7]} 22... e3+ {[%clk 0:01:32.5]} 23. Qxe3 {[%clk 0:01:27.5]} 23... Qxd5+
{[%clk 0:01:28.9]} 24. Bd3 {[%clk 0:01:15.3]} 24... Bxb2 {[%clk 0:01:21]} 25.
Qh6 {[%clk 0:01:13.1]} 25... Bc3+ {[%clk 0:01:12.2]} 26. Ke2 {[%clk 0:00:56.6]}
26... Rce8+ {[%clk 0:01:09.4]} 27. Be4 {[%clk 0:00:35.9]} 27... Rxe4+ {[%clk
0:01:06.6]} 28. Rxe4 {[%clk 0:00:34.3]} 28... Qxe4+ {[%clk 0:01:05.5]} 0-1

[Event "Live Chess"]
[Site "Chess.com"]
[Date "2024.06.01"]
[Round "-"]
[White "JanMur7"]
[Black "CCGoodKnightRookie"]
[Result "1-0"]
[WhiteElo "2297"]
[BlackElo "2340"]
[TimeControl "300"]
[EndTime "15:22:19 PDT"]
[Termination "JanMur7 won by resignation"]

1. c4 {[%clk 0:04:58.3]} 1... c5 {[%clk 0:04:58.4]} 2. Nc3 {[%clk 0:04:56.2]}
2... Nc6 {[%clk 0:04:57.8]} 3. g3 {[%clk 0:04:55]} 3... Nf6 {[%clk 0:04:57.1]}
4. Bg2 {[%clk 0:04:52.2]} 4... e6 {[%clk 0:04:56.5]} 5. Nf3 {[%clk 0:04:50]}
5... d5 {[%clk 0:04:56]} 6. cxd5 {[%clk 0:04:48.7]} 6... exd5 {[%clk 0:04:55.8]}
7. d4 {[%clk 0:04:48.2]} 7... cxd4 {[%clk 0:04:55.3]} 8. Nxd4 {[%clk 0:04:48.1]}
8... Bc5 {[%clk 0:04:54.6]} 9. Nb3 {[%clk 0:04:47.4]} 9... Bb6 {[%clk 0:04:54]}
10. Nxd5 {[%clk 0:04:46]} 10... Be6 {[%clk 0:04:52.8]} 11. Nxf6+ {[%clk
0:04:44.5]} 11... Qxf6 {[%clk 0:04:49]} 12. O-O {[%clk 0:04:43.5]} 12... Rd8
{[%clk 0:04:46.7]} 13. Bd2 {[%clk 0:04:39.7]} 13... O-O {[%clk 0:04:44.3]} 14.
Qc1 {[%clk 0:04:37.6]} 14... Bxb3 {[%clk 0:04:38.7]} 15. axb3 {[%clk 0:04:34.9]}
15... Nd4 {[%clk 0:04:38.1]} 16. Qc4 {[%clk 0:04:25.6]} 16... Nxb3 {[%clk
0:04:20.3]} 17. Qxb3 {[%clk 0:04:17.3]} 17... Rxd2 {[%clk 0:04:18.4]} 18. Bxb7
{[%clk 0:03:52.9]} 18... Rxb2 {[%clk 0:04:08.5]} 19. Qf3 {[%clk 0:03:51.5]}
19... Qe5 {[%clk 0:03:43.8]} 20. e3 {[%clk 0:03:41.5]} 20... Rd8 {[%clk
0:03:27.4]} 21. Ra4 {[%clk 0:03:34.7]} 21... Rdd2 {[%clk 0:02:43.8]} 22. Rf4
{[%clk 0:03:27.9]} 22... Rxf2 {[%clk 0:02:35.3]} 23. Rxf2 {[%clk 0:03:14.9]}
23... Bxe3 {[%clk 0:02:32.5]} 24. Qe4 {[%clk 0:02:50.1]} 24... Qxe4 {[%clk
0:01:54.2]} 25. Bxe4 {[%clk 0:02:50]} 25... a5 {[%clk 0:01:37.7]} 26. Rxf7
{[%clk 0:02:32.8]} 26... Rxf2 {[%clk 0:01:32.9]} 27. Rxf2 {[%clk 0:02:32.6]}
27... a4 {[%clk 0:01:31.5]} 28. Kf1 {[%clk 0:02:25.5]} 28... Bxf2 {[%clk
0:01:30.9]} 29. Kxf2 {[%clk 0:02:25.3]} 29... a3 {[%clk 0:01:30.4]} 30. Bd5+
{[%clk 0:02:23.4]} 30... Kf8 {[%clk 0:01:29.5]} 31. Ke3 {[%clk 0:02:22.5]} 31...
Ke7 {[%clk 0:01:28.6]} 32. Kd4 {[%clk 0:02:20.5]} 32... Kf6 {[%clk 0:01:25.1]}
33. Ke4 {[%clk 0:02:19.6]} 33... Kg5 {[%clk 0:01:21.2]} 34. h3 {[%clk
0:02:18.1]} 34... h5 {[%clk 0:01:15.5]} 35. Ke5 {[%clk 0:02:02.1]} 35... g6
{[%clk 0:01:07.3]} 36. Be6 {[%clk 0:01:53.3]} 36... Kh6 {[%clk 0:01:02.3]} 37.
Kf6 {[%clk 0:01:41.4]} 37... Kh7 {[%clk 0:00:53.2]} 38. g4 {[%clk 0:01:37.7]}
38... hxg4 {[%clk 0:00:18.3]} 39. hxg4 {[%clk 0:01:37.6]} 39... Kh6 {[%clk
0:00:17.2]} 40. g5+ {[%clk 0:01:32.8]} 40... Kh5 {[%clk 0:00:14.7]} 41. Ba2
{[%clk 0:01:29.8]} 1-0

[Event "Live Chess"]
[Site "Chess.com"]
[Date "2024.06.01"]
[Round "-"]
[White "NeilDruggan73"]
[Black "upoe610"]
[Result "0-1"]
[WhiteElo "1746"]
[BlackElo "2205"]
[TimeControl "300"]
[EndTime "15:22:36 PDT"]
[Termination "upoe610 won by resignation"]

1. d4 {[%clk 0:04:56.8]} 1... Nf6 {[%clk 0:04:58.8]} 2. Bg5 {[%clk 0:04:54.5]}
2... c5 {[%clk 0:04:57.2]} 3. d5 {[%clk 0:04:50.5]} 3... d6 {[%clk 0:04:52.4]}
4. Bxf6 {[%clk 0:04:46.2]} 4... exf6 {[%clk 0:04:51.3]} 5. Nf3 {[%clk
0:04:40.7]} 5... g6 {[%clk 0:04:50.1]} 6. e4 {[%clk 0:04:39.3]} 6... Bg7 {[%clk
0:04:49.2]} 7. Nbd2 {[%clk 0:04:35.9]} 7... O-O {[%clk 0:04:47.9]} 8. Bd3 {[%clk
0:04:29]} 8... a6 {[%clk 0:04:44.4]} 9. a4 {[%clk 0:04:26.5]} 9... Nd7 {[%clk
0:04:40.2]} 10. a5 {[%clk 0:04:19.5]} 10... b5 {[%clk 0:04:37.2]} 11. axb6
{[%clk 0:04:16.1]} 11... Nxb6 {[%clk 0:04:35.6]} 12. b3 {[%clk 0:04:10.5]} 12...
f5 {[%clk 0:04:33.9]} 13. Rb1 {[%clk 0:04:09.7]} 13... fxe4 {[%clk 0:04:32.4]}
14. Bxe4 {[%clk 0:04:03.9]} 14... Re8 {[%clk 0:04:31.6]} 15. O-O {[%clk
0:04:01.2]} 15... Bb7 {[%clk 0:04:27]} 16. Nc4 {[%clk 0:03:50]} 16... Rxe4
{[%clk 0:04:22.7]} 17. Nxb6 {[%clk 0:03:47.7]} 17... Qxb6 {[%clk 0:04:21]} 18.
Qd3 {[%clk 0:03:37.7]} 18... Rae8 {[%clk 0:04:18.8]} 19. Rfe1 {[%clk 0:03:35.4]}
19... Rxe1+ {[%clk 0:04:16.8]} 20. Rxe1 {[%clk 0:03:35.1]} 20... Rxe1+ {[%clk
0:04:15.8]} 21. Nxe1 {[%clk 0:03:31.2]} 21... Qb4 {[%clk 0:04:13.6]} 22. Nf3
{[%clk 0:03:29.8]} 22... Qc3 {[%clk 0:04:12.2]} 23. Qe2 {[%clk 0:03:27.7]} 23...
Qa1+ {[%clk 0:04:08.6]} 24. Ne1 {[%clk 0:03:25.4]} 24... Bc3 {[%clk 0:04:07.1]}
0-1

[Event "Live Chess"]
[Site "Chess.com"]
[Date "2024.06.01"]
[Round "-"]
[White "Plato_77"]
[Black "NAZRIZ1977"]
[Result "0-1"]
[WhiteElo "1321"]
[BlackElo "2167"]
[TimeControl "300"]
[EndTime "15:22:36 PDT"]
[Termination "NAZRIZ1977 won by resignation"]

1. d4 {[%clk 0:04:56.5]} 1... Nf6 {[%clk 0:04:56.7]} 2. Bf4 {[%clk 0:04:54.7]}
2... g6 {[%clk 0:04:55.4]} 3. e3 {[%clk 0:04:53.5]} 3... Bg7 {[%clk 0:04:54.5]}
4. Nf3 {[%clk 0:04:52.6]} 4... O-O {[%clk 0:04:53.6]} 5. Bc4 {[%clk 0:04:50.7]}
5... d5 {[%clk 0:04:52.6]} 6. O-O {[%clk 0:04:48.5]} 6... dxc4 {[%clk
0:04:51.4]} 7. c3 {[%clk 0:04:41.5]} 7... Nd5 {[%clk 0:04:48.6]} 8. Nbd2 {[%clk
0:04:40.2]} 8... Nxf4 {[%clk 0:04:47.5]} 9. exf4 {[%clk 0:04:40.1]} 9... b5
{[%clk 0:04:44.8]} 10. a4 {[%clk 0:04:36.7]} 10... c6 {[%clk 0:04:43.9]} 11.
axb5 {[%clk 0:04:35.1]} 11... cxb5 {[%clk 0:04:42.8]} 0-1